Cogmind - Beta 13 @@@ ROGUE MODE // 2024.04.28 @ 19:21:33 Player: b00n1n Result: Destroyed by H-77 Assassin with High-powered Shotgun Performance ------------- Evolutions (6) 3000 Regions Visited (22) 4400 Robots Destroyed (94) 470 Value Destroyed (4664) 4664 Prototype IDs (23) 460 Alien Tech Used (0) 0 Bonus (2578) 2578 TOTAL SCORE: 15572 Bonus ------- High Alert Combat Kills 74 Follower Combat Kills 1124 Entered DSFs 500 Aligned with FarCom 300 Met Data Miner 300 Acquired ECA 300 Friendly Fire -20 Cogmind --------- Core Integrity 0/1150 Matter 142/300 Energy 45/100 System Corruption 7% Temperature Cool (78) Movement Walking (190) Ox1 Location -4/Upper Caves Parts ------- > --- POWER (2) -------- (None) > --- PROPULSION (6) --- Flexi-carbon Leg Cooled Field Propulsion Drive > --- UTILITY (8) ------ Improved Signal Interpreter Encrypted Comm Array Graphene Brace > --- WEAPON (3) ------- Matter Neutralizer Hardcell Cannon > --- INVENTORY (5) ---- Advanced Cryofiber Web Energy Well (350) Improved Remote Datajack Peak State ------------ > --- POWER ------------ Micro Fission Core Light Antimatter Reactor > --- PROPULSION ------- Medium Armored Exoskeleton Myomer Leg Myomer Leg Myomer Leg > --- UTILITY ---------- Energy Well Advanced Matter Compressor Improved Signal Interpreter Centrium Medium Armor Plating Graphene Brace Hacking Suite Improved Hacking Suite Improved System Shield > --- WEAPON ----------- Quantum Rifle Enhanced Gauss Cannon Advanced Datajack > --- INVENTORY -------- Myomer Leg Improved Antigrav System Improved Transmission Jammer Dispersion Rifle Heavy Shock Bomb Launcher [Rating: 121] Favorites ----------- Power Antimatter Reactor Engine Light Angular Momentum Engine Power Core Light Nuclear Core Reactor Antimatter Reactor Propulsion Combat Airjet Treads Light Treads Leg Medium Armored Exoskeleton Hover Unit Combat Airjet Flight Unit VTOL Module Utility Hacking Suite Device Advanced Heat Sink Storage Large Storage Unit Processor Improved Signal Interpreter Hackware Hacking Suite Protection Hardened Medium Armor Plating Weapon Quantum Rifle Energy Gun Quantum Rifle Energy Cannon HERF Cannon Ballistic Gun KE Penetrator Ballistic Cannon Enhanced Gauss Cannon Launcher Heavy Rocket Launcher Special Weapon Field Lobotomy Kit Slashing Weapon Makeshift Sword Special Melee Weapon Advanced Datajack Build | -11 -10 -10 -10 -9 -8 -7 -7 -7 -7 -6 -6 -6 -6 -6 -5 -5 -5 -5 -5 -4 -4 -4 ------- Run | Yrd Mat Min Exi Min Mat Fac Low Low Dat Pro Fac Was Fac DSF Fac Ext Cet Arc Hub Fac Upp Upp Slots Evolved 12 | . . . . . 4 2 . . . . 2 . . . 2 . . . . 2 . . Power 1 | . . . . . . . . . . . . . . . . . . . . 1 . . Propulsion 4 | . . . . . 2 . . . . . 1 . . . 1 . . . . . . . Utility 6 | . . . . . 2 2 . . . . 1 . . . . . . . . 1 . . Weapon 1 | . . . . . . . . . . . . . . . 1 . . . . . . . Parts Attached 262 | 7 2 6 6 5 53 10 1 3 . 10 44 15 . . 10 2 6 7 15 44 15 1 Power 22 | 1 . 1 . . 5 . . . . 3 3 2 . . . . . . . 6 1 . Engine 5 | 1 . . . . 2 . . . . . 2 . . . . . . . . . . . Core 14 | . . 1 . . 3 . . . . 3 1 1 . . . . . . . 4 1 . Reactor 3 | . . . . . . . . . . . . 1 . . . . . . . 2 . . Propulsion 72 | 2 . 2 . . 29 3 . . . 1 9 3 . . 4 1 . 1 5 10 2 . Treads 29 | . . . . . 16 . . . . 1 5 2 . . 2 1 . 1 1 . . . Leg 12 | 2 . . . . . . . . . . 3 1 . . 1 . . . . 4 1 . Wheel . | . . . . . . . . . . . . . . . . . . . . . . . Hover 25 | . . 2 . . 13 3 . . . . 1 . . . . . . . 1 5 . . Flight 6 | . . . . . . . . . . . . . . . 1 . . . 3 1 1 . Utility 89 | 2 . 2 4 . 9 5 . . . . 20 8 . . 2 1 2 5 6 19 4 . Device 46 | 1 . 2 1 . 3 1 . . . . 13 4 . . 1 . . 2 3 13 2 . Storage 17 | 1 . . 2 . 5 . . . . . 1 . . . . 1 . . 2 3 2 . Processor 4 | . . . 1 . . 1 . . . . 1 . . . 1 . . . . . . . Hackware 5 | . . . . . . 1 . . . . 1 . . . . . . 2 . 1 . . Protection 17 | . . . . . 1 2 . . . . 4 4 . . . . 2 1 1 2 . . Artifact . | . . . . . . . . . . . . . . . . . . . . . . . Weapon 79 | 2 2 1 2 5 10 2 1 3 . 6 12 2 . . 4 . 4 1 4 9 8 1 Energy Gun 37 | 1 1 1 1 3 8 2 . 1 . 4 4 1 . . 1 . 1 1 2 3 2 . Energy Cannon 8 | . . . . . . . . . . . 4 . . . 1 . 1 . . 1 1 . Ballistic Gun 12 | 1 . . . . . . . 2 . . 2 1 . . 1 . 2 . 1 1 1 . Ballistic Cannon 5 | . . . . . . . . . . . . . . . 1 . . . 1 . 2 1 Launcher 6 | . . . . 1 2 . . . . 2 . . . . . . . . . 1 . . Special Weapon 7 | . 1 . 1 . . . 1 . . . 2 . . . . . . . . 1 1 . Impact Weapon . | . . . . . . . . . . . . . . . . . . . . . . . Slashing Weapon 2 | . . . . 1 . . . . . . . . . . . . . . . . 1 . Piercing Weapon . | . . . . . . . . . . . . . . . . . . . . . . . Special Melee Weapon 2 | . . . . . . . . . . . . . . . . . . . . 2 . . Unidentified Prototypes 9 | . . . 2 . 1 . . . . . . . . . . . 2 . 1 3 . . Parts Lost 63 | . . 3 . . 3 . . . . 7 15 . . . . 1 3 3 2 18 6 2 Power 12 | . . . . . 1 . . . . 3 3 . . . . . . . . 3 2 . Propulsion 18 | . . . . . . . . . . 1 7 . . . . . . 2 1 6 1 . Utility 18 | . . 2 . . 1 . . . . . 3 . . . . 1 2 . . 6 2 1 Weapon 15 | . . 1 . . 1 . . . . 3 2 . . . . . 1 1 1 3 1 1 Highest Loss Streak 9 | . . 3 . . 2 . . . . 5 9 . . . . 1 2 3 2 5 2 2 To Critical Strikes . | . . . . . . . . . . . . . . . . . . . . . . . Average Slot Usage (%) 88 | . 100 98 99 98 99 93 94 99 100 90 95 73 . 86 82 80 80 76 85 82 42 47 Engine 1 | . 14 11 . . 2 . . . . . 4 . . . . . . . . . . . Core 3 | . . 3 14 14 7 7 7 7 7 6 1 1 . . . . . . . 6 1 . Reactor 1 | . . . . . . . . . . . . 3 . 6 5 5 5 5 5 2 . . Treads 7 | . . . . . 8 3 . . . 3 18 9 . 13 10 11 11 6 4 . . . Leg 6 | . 28 18 . . . . . . . . 8 5 . 6 5 5 5 5 5 16 1 5 Hover 9 | . . 9 28 28 27 26 30 30 30 26 4 1 . . . . . . 2 1 . . Device 7 | . 14 13 1 . 1 3 . . . . 12 11 . 13 6 5 5 5 5 13 12 10 Storage 8 | . 14 14 23 14 17 15 15 15 15 15 6 . . . . 2 5 5 4 4 1 . Processor 7 | . . . 2 14 9 13 15 15 15 15 11 . . . 3 5 5 5 5 5 5 5 Hackware 9 | . . . . . . 2 7 7 7 7 12 13 . 13 11 11 11 15 17 14 5 5 Protection 5 | . . . . . 7 6 7 7 7 7 . 11 . 20 17 13 9 6 4 2 . . Energy Gun 8 | . 9 13 14 16 17 10 3 5 7 2 4 8 . 6 2 5 5 9 11 9 3 . Energy Cannon 1 | . . . . . . . . . . . . . . . 5 5 5 5 . . 1 5 Ballistic Gun 2 | . 14 14 14 1 . . . 6 7 2 . 3 . 6 4 5 4 . 2 . . . Special Weapon 1 | . 4 . . . . . 5 1 . . 4 . . . . . . . . . . . Naked Turns . | . . . . . . . . . . . . . . . . . . . . . . . Heaviest Build 64 | 15 15 15 23 21 45 55 43 43 39 42 64 46 46 46 59 60 60 57 49 58 28 . Greatest Support 140 | 20 20 24 24 24 60 60 40 40 40 40 90 70 70 140 140 100 100 100 50 125 20 . Greatest Overweight (x) 4 | 3 . 4 . . 1 1 1 1 . 1 4 . . . . . . 1 1 4 3 . Average Overweight (x) . | . . . . . . . . . . . . . . . . . . . . . . . Largest Inventory Capacity 15 | 8 8 8 8 8 15 15 15 15 15 15 15 5 5 5 5 5 5 5 5 5 5 5 Average Capacity 9 | 7 8 8 8 8 14 15 15 15 15 15 14 5 5 5 5 5 5 5 5 5 5 5 Most Carried 15 | 8 8 8 8 8 15 15 15 15 15 15 15 5 5 5 5 5 5 5 5 5 5 3 Average Carried 9 | 5 7 7 8 7 13 14 14 14 15 12 14 4 5 5 4 4 4 4 4 4 3 3 Final Capacity 15 | 8 8 8 8 8 15 15 15 15 15 15 5 5 5 5 5 5 5 5 5 5 5 5 Final Carried 15 | 8 8 8 8 8 15 15 15 15 15 11 5 5 5 5 5 5 4 5 5 5 4 3 Class Distribution -------------------- 35% | Scavenger-Mutant 22% | Mutant 19% | Scavenger-Tank 14% | Scavenger-Skirmisher 6% | Hacker-Mutant Dominant Class ---------------- Mutant | -10/Materials Mutant | -10/Mines Mutant | -10/Exiles Mutant | -9/Mines Mutant | -8/Materials Mutant | -7/Factory Scavenger-Mutant | -7/Lower Caves Scavenger-Mutant | -7/Lower Caves Scavenger-Mutant | -7/Data Miner Mutant | -6/Proximity Caves Scavenger-Mutant | -6/Factory Scavenger-Mutant | -6/Waste Scavenger-Mutant | -6/Factory Scavenger-Mutant | -6/DSF Scavenger-Tank | -5/Factory Scavenger-Tank | -5/Extension Scavenger-Tank | -5/Cetus Scavenger-Skirmisher | -5/Archives Scavenger-Skirmisher | -5/Hub_04(d) Scavenger-Skirmisher | -4/Factory Mutant | -4/Upper Caves Mutant | -4/Upper Caves Resources | -11 -10 -10 -10 -9 -8 -7 -7 -7 -7 -6 -6 -6 -6 -6 -5 -5 -5 -5 -5 -4 -4 -4 ----------- Run | Yrd Mat Min Exi Min Mat Fac Low Low Dat Pro Fac Was Fac DSF Fac Ext Cet Arc Hub Fac Upp Upp Matter Collected 3329 | 221 . 126 10 . 548 20 242 25 . 163 293 360 . 24 100 127 125 100 110 586 149 . Remotely . | . . . . . . . . . . . . . . . . . . . . . . . Salvage Created 4317 | 30 . . . . 604 20 . . . 185 487 . . . . 804 559 561 237 732 98 . Parts 216 | 5 . . . . 35 3 . . . 18 21 . . . . 37 23 12 10 42 10 . Haulers Intercepted . | . . . . . . . . . . . . . . . . . . . . . . . Recyclers Shooed 2 | . . . . . . . . . . . 1 . . . . . . . . 1 . . Parts Field Recycled . | . . . . . . . . . . . . . . . . . . . . . . . Retrieved Matter . | . . . . . . . . . . . . . . . . . . . . . . . Parts Self-Destructed 25 | . . . . . . . 5 . . 9 . . . . . . . . . . 11 . Prevented 6 | . . . . . . . . . . 6 . . . . . . . . . . . . Kills | -11 -10 -10 -10 -9 -8 -7 -7 -7 -7 -6 -6 -6 -6 -6 -5 -5 -5 -5 -5 -4 -4 -4 ------- Run | Yrd Mat Min Exi Min Mat Fac Low Low Dat Pro Fac Was Fac DSF Fac Ext Cet Arc Hub Fac Upp Upp Combat Hostiles Destroyed 80 | . . . . . 14 . . . . 9 9 . . . . 9 8 4 6 14 7 . Guns 39 | . . . . . 8 . . . . 2 3 . . . . 4 4 2 6 9 1 . Cannons 21 | . . . . . . . . . . . 5 . . . . 5 3 . . 2 6 . AOE 13 | . . . . . 5 . . . . 6 . . . . . . . . . 2 . . Classes Destroyed 14 | 1 . . . . 5 1 . . . 1 1 . . . . 3 . . 1 1 . . Worker 2 | . . . . . . . . . . . . . . . . 1 . . . 1 . . Builder 1 | . . . . . . . . . . . . . . . . . . . . 1 . . Tunneler 1 | 1 . . . . . . . . . . . . . . . . . . . . . . Recycler 1 | . . . . . . . . . . . . . . . . 1 . . . . . . Operator 8 | . . . . . . 1 . . . . . . . . . . . 5 . 2 . . Watcher 1 | . . . . . . . . . . . . . . . . . . . 1 . . . Swarmer 25 | . . . . . . . . . . 8 2 . . . . . . . 5 3 7 . Grunt 27 | . . . . . 9 . . . . . 5 . . . . 5 4 . . 4 . . Brawler 1 | . . . . . 1 . . . . . . . . . . . . . . . . . Duelist 2 | . . . . . 1 . . . . . 1 . . . . . . . . . . . Sentry 10 | . . . . . 2 . . . . 1 . . . . . 2 . 4 1 . . . Hunter 5 | . . . . . 1 . . . . . . . . . . 1 . . . 3 . . Programmer 5 | . . . . . . . . . . . 1 . . . . . . . . 4 . . Behemoth 1 | . . . . . . . . . . . . . . . . 1 . . . . . . Cetus Guard 4 | . . . . . . . . . . . . . . . . . 4 . . . . . Best Kill Streak 4 | 1 . . . . 3 1 . . . 4 3 . . . . 4 4 1 4 4 4 . Combat Bots Only 4 | . . . . . 3 . . . . 4 3 . . . . 3 4 1 4 3 4 . Max Kills in Single Turn 3 | 1 . . . . 2 1 . . . 3 1 . . . . 2 1 1 2 2 1 . Gunslinging 1 | . . . . . . . . . . . . . . . . . . . . 1 . . Exploded 3 | . . . . . 2 . . . . 3 . . . . . . . . . 1 . . Melee . | . . . . . . . . . . . . . . . . . . . . . . . Uniques/NPCs Destroyed . | . . . . . . . . . . . . . . . . . . . . . . . Combat | -11 -10 -10 -10 -9 -8 -7 -7 -7 -7 -6 -6 -6 -6 -6 -5 -5 -5 -5 -5 -4 -4 -4 -------- Run | Yrd Mat Min Exi Min Mat Fac Low Low Dat Pro Fac Was Fac DSF Fac Ext Cet Arc Hub Fac Upp Upp Hostile Shots Fired 945 | . . 19 . . 95 . 2 3 . 111 193 . . . 3 45 52 53 47 243 59 20 Missed 278 | . . 7 . . 22 . . 3 . 58 47 . . . 1 9 11 12 11 73 20 4 Damage Taken 12856 | . . 359 . 20 1214 . 32 . . 800 2454 . . . 85 765 973 1082 589 3504 706 273 Core 1901 | . . . . . 133 . 32 . . 65 323 . . . 30 20 . 102 41 838 226 91 Absorbed by Shields 469 | . . . . . . . . . . . 238 . . . . . . . . 231 . . Reduced by Siege Mode 121 | . . . . . . . . . . . . . . . . 26 82 13 . . . . Redirected to Shielding 152 | . . . . . . . . . . 77 . . . . 14 61 . . . . . . Ignored by Resistances 68 | . . . . . . . . . . . 57 . . . . . . . . 11 . . Regen/Repaired (Parts) 639 | . . . . . . . . . . . . 310 . . 49 280 . . . . . . Core Remaining (%) 83 | 100 . . . 100 75 . . . . 86 . . . 62 . . . . 80 . . . Volleys Fired 350 | 3 21 1 . . 39 1 . 1 . 28 71 . . . . 28 20 54 19 49 13 2 Largest 3 | 2 1 1 . . 2 2 . 2 . 1 2 . . . . 3 3 3 3 3 2 2 Hottest 255 | 70 100 20 . . 124 110 . 28 . 63 135 . . . . 202 202 255 197 247 153 170 Shots Fired 692 | 6 21 1 . . 63 2 . 2 . 28 109 . . . . 77 60 124 43 125 27 4 Gun 517 | 6 3 1 . . 55 2 . 1 . 24 67 . . . . 54 40 105 43 102 14 . Cannon 138 | . . . . . . . . . . . 38 . . . . 23 20 19 . 21 13 4 Launcher 14 | . . . . . 8 . . . . 4 . . . . . . . . . 2 . . Special 23 | . 18 . . . . . . 1 . . 4 . . . . . . . . . . . Kinetic 133 | 3 . 1 . . . . . 1 . . 26 . . . . 28 20 11 5 22 14 2 Thermal 361 | 3 21 . . . 18 . . . . 12 38 . . . . 26 20 94 38 76 13 2 Explosive 12 | . . . . . 8 . . . . 4 . . . . . . . . . . . . Electromagnetic 181 | . . . . . 37 2 . . . 12 41 . . . . 23 20 19 . 27 . . Robot Hit Streak 41 | 4 6 1 . . 15 3 . 5 . 12 25 . . . . 36 41 17 13 8 2 5 Robot Miss Streak 7 | 1 1 . . . 2 . . . . 4 6 . . . . 3 1 3 7 3 4 . Penetration Max 1 | . . . . . . . . . . . . . . . . 1 1 . . . . . Secondary Targets 3 | . . . . . 1 . . . . . . . . . . . . . . 2 . . Max Gunslinging Chain 1 | . . . . . 1 . . . . . . . . . . . . . . 1 . . Shots Hit Robots 485 | 5 2 1 . . 52 2 . 2 . 18 83 . . . . 62 49 93 23 79 10 4 Core Hits 208 | 1 . . . . 34 2 . 1 . 16 22 . . . . 27 24 24 9 40 7 1 Critical Kills 2 | . . . . . . . . . . . . . . . . . 1 . . 1 . . Critical Parts Destroyed 1 | . . . . . . . . . . . . . . . . . . . . 1 . . Critical Strikes 14 | 1 1 . . . . . . . . . . . . . . 3 3 . . 4 2 . Burn 7 | 1 1 . . . . . . . . . . . . . . 3 2 . . . . . Destroy 3 | . . . . . . . . . . . . . . . . . 1 . . 2 . . Blast 3 | . . . . . . . . . . . . . . . . . . . . 1 2 . Corrupt 1 | . . . . . . . . . . . . . . . . . . . . 1 . . Melee Attacks . | . . . . . . . . . . . . . . . . . . . . . . . Impact . | . . . . . . . . . . . . . . . . . . . . . . . Slashing . | . . . . . . . . . . . . . . . . . . . . . . . Piercing . | . . . . . . . . . . . . . . . . . . . . . . . Sneak Attacks . | . . . . . . . . . . . . . . . . . . . . . . . Combat Hostiles . | . . . . . . . . . . . . . . . . . . . . . . . Follow-up Attacks . | . . . . . . . . . . . . . . . . . . . . . . . Damage Inflicted 13464 | 61 25 13 . . 1515 31 . 20 . 721 1356 . . . 21 1771 1362 2449 670 2882 441 126 Guns 8460 | 61 25 13 . . 742 31 . 20 . 207 655 . . . . 1119 912 2224 670 1646 135 . Cannons 2898 | . . . . . . . . . . . 662 . . . . 652 450 225 . 477 306 126 Explosions 2046 | . . . . . 773 . . . . 514 . . . . . . . . . 759 . . Melee . | . . . . . . . . . . . . . . . . . . . . . . . Ramming 60 | . . . . . . . . . . . 39 . . . 21 . . . . . . . Kinetic 2587 | 36 . 13 . . . . . 20 . . 341 . . . . 585 502 237 46 447 306 54 Thermal 6690 | 25 25 . . . 372 . . . . 104 662 . . . . 534 410 1987 624 1740 135 72 Explosive 1372 | . . . . . 684 . . . . 514 . . . . . . . . . 174 . . Electromagnetic 2755 | . . . . . 459 31 . . . 103 314 . . . . 652 450 225 . 521 . . Impact . | . . . . . . . . . . . . . . . . . . . . . . . Slashing . | . . . . . . . . . . . . . . . . . . . . . . . Piercing . | . . . . . . . . . . . . . . . . . . . . . . . Highest Corruption 7 | . . . . . . . . . . . 3 3 3 3 . . . . 1 7 7 7 Average Corruption 4 | . . . . . . . . . . . 2 3 3 3 . . . . 1 5 7 7 Corruption Purged . | . . . . . . . . . . . . . . . . . . . . . . . Corruption Blocked . | . . . . . . . . . . . . . . . . . . . . . . . Effects 45 | . . . . . . . . . . . 7 8 . 4 . . . . . 17 9 . Message Errors 8 | . . . . . . . . . . . . . . 1 . . . . . 3 4 . Matter Fused 15 | . . . . . . . . . . . 4 3 . 3 . . . . . 3 2 . Heat Flow Errors 3 | . . . . . . . . . . . . 1 . . . . . . . . 2 . Energy Discharges 4 | . . . . . . . . . . . 2 1 . . . . . . . 1 . . Parts Rejected 1 | . . . . . . . . . . . 1 . . . . . . . . . . . Data Loss (minor) 5 | . . . . . . . . . . . . 1 . . . . . . . 4 . . Data Loss (major) 4 | . . . . . . . . . . . . 2 . . . . . . . 2 . . Misfires 3 | . . . . . . . . . . . . . . . . . . . . 2 1 . Alerts 2 | . . . . . . . . . . . . . . . . . . . . 2 . . Overload Shots . | . . . . . . . . . . . . . . . . . . . . . . . Overflow Damage 331 | . . . . . 63 . . . . 28 4 . . . 1 1 . . . 234 . . Projectiles 43 | . . . . . . . . . . . 4 . . . . 1 . . . 38 . . Explosions 287 | . . . . . 63 . . . . 28 . . . . . . . . . 196 . . Melee 1 | . . . . . . . . . . . . . . . 1 . . . . . . . Knockbacks 7 | . . . . . . . . . . . . . . . . . . . . 4 1 2 Impact . | . . . . . . . . . . . . . . . . . . . . . . . Kinetic 7 | . . . . . . . . . . . . . . . . . . . . 4 1 2 Secondary . | . . . . . . . . . . . . . . . . . . . . . . . Self-Inflicted Damage 427 | . . . . . 51 . . . . . . . . . . . . . . 376 . . Shots 6 | . . . . . 1 . . . . . . . . . . . . . . 5 . . Rammed 5 | . . . . . . . . . . . 3 . . . 1 . . . . 1 . . Targets Rammed 7 | . . . . . . . . . . . 5 . . . 1 . . . . 1 . . Kicked 2 | . . . . . . . . . . . 2 . . . . . . . . . . . Crushed . | . . . . . . . . . . . . . . . . . . . . . . . Highest Temperature 448 | 9 206 . . . 300 33 . . . 77 188 147 . . . 234 248 340 294 448 76 78 Average Temperature 106 | 6 76 . . . 96 20 . . . 25 56 80 . . . 88 131 74 156 183 31 45 Received Heat Transfer 2338 | . . . . . 603 . . . . 78 701 . . . 9 219 126 180 45 323 54 . Effects 19 | . 1 . . . 3 . . . . . . . . . . 2 1 . . 12 . . Shutdowns 2 | . . . . . . . . . . . . . . . . . . . . 2 . . Energy Bleed 1 | . . . . . . . . . . . . . . . . . . . . 1 . . Interference 8 | . 1 . . . 3 . . . . . . . . . . 2 1 . . 1 . . Matter Decay 1 | . . . . . . . . . . . . . . . . . . . . 1 . . Short Circuit 1 | . . . . . . . . . . . . . . . . . . . . 1 . . Damage (minor) 2 | . . . . . . . . . . . . . . . . . . . . 2 . . Damage (major) 4 | . . . . . . . . . . . . . . . . . . . . 4 . . Siege Activations 13 | . . . . . . . . . . . . . . 1 2 5 2 3 . . . . Total Turns 430 | . . . . . . . . . . . . . . 140 16 136 99 39 . . . . Longest Duration 140 | . . . . . . . . . . . . . . 140 10 48 59 23 . . . . Robots Corrupted 6 | . . . . . 1 . . . . 1 1 . . . . . 1 1 . 1 . . Combat Hostiles 6 | . . . . . 1 . . . . 1 1 . . . . . 1 1 . 1 . . Parts Fried 11 | . . . . . 1 . . . . 1 3 . . . . 5 . 1 . . . . Impact Corruptions 1 | . . . . . . . . . . . . . . . 1 . . . . . . . Robots Melted 1 | . . . . . . . . . . . . . . . . . . 1 . . . . Combat Hostiles 1 | . . . . . . . . . . . . . . . . . . 1 . . . . Parts Melted 22 | . . . . . . . . . . . 2 . . . . 3 . 11 1 5 . . Heat Transferred 9715 | 148 148 . . . 655 . . . . 222 1040 . . . . 1073 777 2590 814 1989 185 74 Parts Sabotaged . | . . . . . . . . . . . . . . . . . . . . . . . Parts Stolen . | . . . . . . . . . . . . . . . . . . . . . . . Parts Stripped . | . . . . . . . . . . . . . . . . . . . . . . . Power Chain Reactions 3 | . . . . . 1 . . . . . . . . . . . . . . 2 . . Alert | -11 -10 -10 -10 -9 -8 -7 -7 -7 -7 -6 -6 -6 -6 -6 -5 -5 -5 -5 -5 -4 -4 -4 ------- Run | Yrd Mat Min Exi Min Mat Fac Low Low Dat Pro Fac Was Fac DSF Fac Ext Cet Arc Hub Fac Upp Upp Peak Influence 878 | 5 21 7 . . 278 99 . . . . 191 29 . 404 878 517 375 180 177 423 . . Initial 429 | . 3 7 . . . 82 . . . . 141 29 . 2 212 429 182 70 3 . . . Average 144 | . 12 2 . . 58 88 . . . . 38 23 . 173 606 406 267 63 95 214 . . Maximum Alert Level 3 | . . . . . 1 . . . . . . . . 2 3 2 1 . . 2 . . Low Security (%) 72 | 100 100 100 . 100 94 100 . . . . 100 100 100 65 . . 26 100 100 37 . . Level 1 17 | . . . . . 5 . . . . . . . . 33 23 41 73 . . 54 . . Level 2 7 | . . . . . . . . . . . . . . . 32 58 . . . 8 . . Level 3 2 | . . . . . . . . . . . . . . . 44 . . . . . . . Level 4 . | . . . . . . . . . . . . . . . . . . . . . . . Level 5 . | . . . . . . . . . . . . . . . . . . . . . . . High Security . | . . . . . . . . . . . . . . . . . . . . . . . Max Security . | . . . . . . . . . . . . . . . . . . . . . . . Sterilizations 1 | . . . . . . . . . . . . . . 1 . . . . . . . . Squads Dispatched 29 | . . . . . 6 . . . . . 9 . . 1 2 2 1 . 1 7 . . Investigation 5 | . . . . . 2 . . . . . . . . . . 1 1 . . 1 . . Extermination 8 | . . . . . . . . . . . 5 . . . . . . . 1 2 . . Reinforcement 6 | . . . . . 1 . . . . . 2 . . 1 . 1 . . . 1 . . Assault 3 | . . . . . . . . . . . . . . . 2 . . . . 1 . . Garrison 7 | . . . . . 3 . . . . . 2 . . . . . . . . 2 . . Intercept . | . . . . . . . . . . . . . . . . . . . . . . . Searches Triggered . | . . . . . . . . . . . . . . . . . . . . . . . Construction Impeded 1 | . . . . . . . . . . . . . . . . 1 . . . . . . Haulers Reinforced 1 | . . . . . . . . . . . . . . . . . . . . 1 . . Active Scanning Responses . | . . . . . . . . . . . . . . . . . . . . . . . Cargo Convoy Interrupts . | . . . . . . . . . . . . . . . . . . . . . . . Stealth | -11 -10 -10 -10 -9 -8 -7 -7 -7 -7 -6 -6 -6 -6 -6 -5 -5 -5 -5 -5 -4 -4 -4 --------- Run | Yrd Mat Min Exi Min Mat Fac Low Low Dat Pro Fac Was Fac DSF Fac Ext Cet Arc Hub Fac Upp Upp Distress Signals 10 | . . . . . 1 . . . . . 1 . . 1 1 3 2 . . 1 . . Communications Jammed . | . . . . . . . . . . . . . . . . . . . . . . . Distress Signals . | . . . . . . . . . . . . . . . . . . . . . . . Times Spotted 220 | . 1 11 . . 19 2 3 2 . 20 37 . . 3 20 13 13 23 9 29 13 2 Peak Tracking Total 11 | . 1 11 . . 5 2 1 1 . 11 7 . . 3 5 4 5 2 5 7 4 2 Tactical Retreats 29 | . . 2 . . 4 . 2 . . 3 10 . . . . . 1 . . 4 3 . Traps | -11 -10 -10 -10 -9 -8 -7 -7 -7 -7 -6 -6 -6 -6 -6 -5 -5 -5 -5 -5 -4 -4 -4 ------- Run | Yrd Mat Min Exi Min Mat Fac Low Low Dat Pro Fac Was Fac DSF Fac Ext Cet Arc Hub Fac Upp Upp Traps Triggered 7 | . . . . 1 1 . . . . . 2 . . . . . . . . 3 . . Indirectly 3 | . . . . . . . . . . . . . . . . . . . . 3 . . Trap Hack Attempts . | . . . . . . . . . . . . . . . . . . . . . . . Triggered . | . . . . . . . . . . . . . . . . . . . . . . . Disarmed . | . . . . . . . . . . . . . . . . . . . . . . . Reprogrammed . | . . . . . . . . . . . . . . . . . . . . . . . Reused . | . . . . . . . . . . . . . . . . . . . . . . . Traps Extracted . | . . . . . . . . . . . . . . . . . . . . . . . Installed . | . . . . . . . . . . . . . . . . . . . . . . . Triggered 1 | . . . . . . . 1 . . . . . . . . . . . . . . . Machines | -11 -10 -10 -10 -9 -8 -7 -7 -7 -7 -6 -6 -6 -6 -6 -5 -5 -5 -5 -5 -4 -4 -4 ---------- Run | Yrd Mat Min Exi Min Mat Fac Low Low Dat Pro Fac Was Fac DSF Fac Ext Cet Arc Hub Fac Upp Upp Machines Disabled 21 | . . . . . 2 . . . . . . . . 1 2 1 1 1 . 13 . . Max in Single Turn 7 | . . . . . 1 . . . . . . . . . . 1 1 1 . 7 . . Garrison Access 2 | . . . . . . 1 . . . . . . . . . . . . . 1 . . Machines Repaired . | . . . . . . . . . . . . . . . . . . . . . . . Machines Dismantled . | . . . . . . . . . . . . . . . . . . . . . . . Machines Sabotaged . | . . . . . . . . . . . . . . . . . . . . . . . Overloaded Fab Kills . | . . . . . . . . . . . . . . . . . . . . . . . Hacking | -11 -10 -10 -10 -9 -8 -7 -7 -7 -7 -6 -6 -6 -6 -6 -5 -5 -5 -5 -5 -4 -4 -4 --------- Run | Yrd Mat Min Exi Min Mat Fac Low Low Dat Pro Fac Was Fac DSF Fac Ext Cet Arc Hub Fac Upp Upp Machines Accessed 41 | . 2 . 4 1 9 4 . 1 4 . 1 . 1 . 4 1 3 1 2 3 . . Terminals 26 | . 1 . . . 7 3 . 1 . . 1 . 1 . 4 1 3 . 2 2 . . Fabricators 1 | . . . . . . . . . . . . . . . . . . . . 1 . . Repair Stations . | . . . . . . . . . . . . . . . . . . . . . . . Recycling Units 1 | . 1 . . . . . . . . . . . . . . . . . . . . . Scanalyzers 1 | . . . . . 1 . . . . . . . . . . . . . . . . . Garrison Access 2 | . . . . . 1 1 . . . . . . . . . . . . . . . . Total Hacks 183 | . 5 . 49 1 26 10 . 1 30 . 1 . 1 . 10 2 9 25 7 6 . . Successful 148 | . 2 . 49 1 15 4 . 1 30 . 1 . 1 . 6 . 5 25 4 4 . . Failed 35 | . 3 . . . 11 6 . . . . . . . . 4 2 4 . 3 2 . . Catastrophic 3 | . 1 . . . 2 . . . . . . . . . . . . . . . . . Database Lockouts . | . . . . . . . . . . . . . . . . . . . . . . . Manual 15 | . 2 . 1 . 5 1 . . . . 1 . . . 3 . 2 . . . . . Terminals 63 | . 2 . . . 18 8 . 1 . . 1 . 1 . 10 2 9 . 7 4 . . Fabricators 2 | . . . . . . . . . . . . . . . . . . . . 2 . . Repair Stations . | . . . . . . . . . . . . . . . . . . . . . . . Recycling Units 3 | . 3 . . . . . . . . . . . . . . . . . . . . . Scanalyzers 7 | . . . . . 7 . . . . . . . . . . . . . . . . . Garrison Access 3 | . . . . . 1 2 . . . . . . . . . . . . . . . . Terminal Hacks 137 | . . . 49 1 9 3 . 1 30 . 1 . 1 . 6 . 5 25 4 2 . . Record 95 | . . . 49 . . 1 . 1 11 . . . . . 1 . 4 25 1 2 . . Part Schematic 12 | . . . . . . . . . 12 . . . . . . . . . . . . . Robot Schematic 4 | . . . . . . . . . 4 . . . . . . . . . . . . . Robot Analysis 2 | . . . . . . 1 . . . . . . . . . . . . 1 . . . Prototype ID Bank 5 | . . . . . 2 . . . 3 . . . . . . . . . . . . . Open Door 2 | . . . . 1 . . . . . . . . . . . . 1 . . . . . Open DSF 1 | . . . . . . . . . . . . . 1 . . . . . . . . . Emergency Access Points 1 | . . . . . 1 . . . . . . . . . . . . . . . . . Alert Level 9 | . . . . . 3 1 . . . . 1 . . . 3 . . . 1 . . . Unreport Threat 2 | . . . . . . . . . . . . . . . 2 . . . . . . . Locate Traps 1 | . . . . . 1 . . . . . . . . . . . . . . . . . Dispatch Records 1 | . . . . . 1 . . . . . . . . . . . . . . . . . Zone Layout 2 | . . . . . 1 . . . . . . . . . . . . . 1 . . . Fabricator Hacks 2 | . . . . . . . . . . . . . . . . . . . . 2 . . Load Schematic 1 | . . . . . . . . . . . . . . . . . . . . 1 . . Build 1 | . . . . . . . . . . . . . . . . . . . . 1 . . Repair Station Hacks . | . . . . . . . . . . . . . . . . . . . . . . . Recycling Unit Hacks 2 | . 2 . . . . . . . . . . . . . . . . . . . . . Recycle Component 1 | . 1 . . . . . . . . . . . . . . . . . . . . . Process 1 | . 1 . . . . . . . . . . . . . . . . . . . . . Scanalyzer 6 | . . . . . 6 . . . . . . . . . . . . . . . . . Insert Component 3 | . . . . . 3 . . . . . . . . . . . . . . . . . Analyze 3 | . . . . . 3 . . . . . . . . . . . . . . . . . Garrison Access Hacks 1 | . . . . . . 1 . . . . . . . . . . . . . . . . Seal Access 1 | . . . . . . 1 . . . . . . . . . . . . . . . . Unauthorized Hacks . | . . . . . . . . . . . . . . . . . . . . . . . Terminals . | . . . . . . . . . . . . . . . . . . . . . . . Fabricators . | . . . . . . . . . . . . . . . . . . . . . . . Repair Stations . | . . . . . . . . . . . . . . . . . . . . . . . Recycling Units . | . . . . . . . . . . . . . . . . . . . . . . . Scanalyzers . | . . . . . . . . . . . . . . . . . . . . . . . Garrison Access . | . . . . . . . . . . . . . . . . . . . . . . . Data Cores Recovered 2 | . . . . . . 1 . . . . . . . . . . . . . 1 . . Used . | . . . . . . . . . . . . . . . . . . . . . . . Hacking Detections 29 | . 2 . . . 8 4 . . . . 1 . . . 4 1 4 . 2 3 . . Full Trace Events 3 | . . . . . 1 . . . . . . . . . . . 1 . . 1 . . Feedback Events . | . . . . . . . . . . . . . . . . . . . . . . . Feedback Blocked . | . . . . . . . . . . . . . . . . . . . . . . . Robot Schematics Acquired 4 | . . . . . . . . . 4 . . . . . . . . . . . . . Robots Built . | . . . . . . . . . . . . . . . . . . . . . . . Authchips . | . . . . . . . . . . . . . . . . . . . . . . . Time 134 | . . . . . . . . . . . . . . . . . . . . 134 . . Total Robot Build Rating . | . . . . . . . . . . . . . . . . . . . . . . . Part Schematics Acquired 14 | . . . . . 2 . . . 12 . . . . . . . . . . . . . Parts Built . | . . . . . . . . . . . . . . . . . . . . . . . Authchips . | . . . . . . . . . . . . . . . . . . . . . . . Time . | . . . . . . . . . . . . . . . . . . . . . . . Total Part Build Rating . | . . . . . . . . . . . . . . . . . . . . . . . Parts Repaired . | . . . . . . . . . . . . . . . . . . . . . . . Time . | . . . . . . . . . . . . . . . . . . . . . . . Parts Recycled 1 | . 1 . . . . . . . . . . . . . . . . . . . . . Recycled Matter 38 | . 38 . . . . . . . . . . . . . . . . . . . . . Retrieved Matter . | . . . . . . . . . . . . . . . . . . . . . . . Retrieved Components . | . . . . . . . . . . . . . . . . . . . . . . . Parts Scanalyzed 2 | . . . . . 2 . . . . . . . . . . . . . . . . . Part Schematics Acquired 2 | . . . . . 2 . . . . . . . . . . . . . . . . . Parts Damaged 1 | . . . . . 1 . . . . . . . . . . . . . . . . . Bothacking | -11 -10 -10 -10 -9 -8 -7 -7 -7 -7 -6 -6 -6 -6 -6 -5 -5 -5 -5 -5 -4 -4 -4 ------------ Run | Yrd Mat Min Exi Min Mat Fac Low Low Dat Pro Fac Was Fac DSF Fac Ext Cet Arc Hub Fac Upp Upp Used RIF Installer . | . . . . . . . . . . . . . . . . . . . . . . . Robots Hacked . | . . . . . . . . . . . . . . . . . . . . . . . Non-combat . | . . . . . . . . . . . . . . . . . . . . . . . Combat . | . . . . . . . . . . . . . . . . . . . . . . . Robot Hacks Applied . | . . . . . . . . . . . . . . . . . . . . . . . Relay Couplers Released 3 | . . . . . . . . . . . . . . . . . . . . 3 . . Machine Destruction 3 | . . . . . . . . . . . . . . . . . . . . 3 . . Fabnet Peak Effective % . | . . . . . . . . . . . . . . . . . . . . . . . Robots Rewired . | . . . . . . . . . . . . . . . . . . . . . . . Allies Hacked . | . . . . . . . . . . . . . . . . . . . . . . . Hacks Repelled . | . . . . . . . . . . . . . . . . . . . . . . . Allies | -11 -10 -10 -10 -9 -8 -7 -7 -7 -7 -6 -6 -6 -6 -6 -5 -5 -5 -5 -5 -4 -4 -4 -------- Run | Yrd Mat Min Exi Min Mat Fac Low Low Dat Pro Fac Was Fac DSF Fac Ext Cet Arc Hub Fac Upp Upp Total Allies 28 | . . 3 . . . . . 1 . . 4 20 . . . . . . . . . . Largest Group 20 | . . 3 . . . . . 1 . . 1 20 20 20 16 7 1 . . . . . Highest-Rated Group 771 | . . 40 . . . . . 29 . . 37 771 770 770 649 299 25 . . . . . Highest-Rated Ally 50 | . . 16 . . . . . 29 . . 37 50 50 50 50 46 25 . . . . . Total Orders 3 | . . . . . . . . 1 . . 2 . . . . . . . . . . . FOLLOW 1 | . . . . . . . . . . . 1 . . . . . . . . . . . AID 2 | . . . . . . . . 1 . . 1 . . . . . . . . . . . Ally Attacks 211 | . . 17 . . . . . 1 . . 16 . . 55 98 24 . . . . . . Total Damage 6365 | . . 166 . . . . . . . . 499 . . 1301 3672 727 . . . . . . Kills 50 | . . 2 . . . . . . . . 3 . . 9 33 3 . . . . . . Allies Corrupted 3 | . . . . . . . . . . . . . . 1 2 . . . . . . . Allies Melted . | . . . . . . . . . . . . . . . . . . . . . . . Field Lobotomies 5 | . . . . . . . . 1 . . 4 . . . . . . . . . . . Intel | -11 -10 -10 -10 -9 -8 -7 -7 -7 -7 -6 -6 -6 -6 -6 -5 -5 -5 -5 -5 -4 -4 -4 ------- Run | Yrd Mat Min Exi Min Mat Fac Low Low Dat Pro Fac Was Fac DSF Fac Ext Cet Arc Hub Fac Upp Upp Robot Analysis Total 2 | . . . . . . 1 . . . . . . . . . . . . 1 . . . Derelict Logs Recovered 4 | . . . . 1 . . 2 . . . . . . . . . . . . . 1 . Drone Launches . | . . . . . . . . . . . . . . . . . . . . . . . Drone Recoveries . | . . . . . . . . . . . . . . . . . . . . . . . Exploration | -11 -10 -10 -10 -9 -8 -7 -7 -7 -7 -6 -6 -6 -6 -6 -5 -5 -5 -5 -5 -4 -4 -4 ------------- Run | Yrd Mat Min Exi Min Mat Fac Low Low Dat Pro Fac Was Fac DSF Fac Ext Cet Arc Hub Fac Upp Upp Turns Passed 13263 | 119 296 279 580 126 1890 250 325 168 67 289 2618 484 3 225 685 902 484 921 561 1652 332 7 Spaces Moved 8892 | 63 169 256 736 146 1287 248 530 281 125 313 1086 305 3 47 381 458 236 444 285 1082 411 . Core 183 | 11 . 1 . . . . . . . . 28 18 . . . . . . . 125 . . Treads 2254 | . . . . . 95 23 . . . 4 682 261 3 47 381 458 236 51 13 . . . Legs 2111 | 52 169 143 . . . . . . . . 107 26 . . . . . 393 272 874 75 . Wheels . | . . . . . . . . . . . . . . . . . . . . . . . Hover 3926 | . . 112 736 146 1192 225 530 281 125 309 269 . . . . . . . . 1 . . Flight 418 | . . . . . . . . . . . . . . . . . . . . 82 336 . Fastest Speed 34 | 50 120 77 77 77 54 54 54 54 54 54 50 50 145 145 145 152 152 140 140 40 34 . Average Speed 103 | 123 120 102 77 77 66 65 58 55 54 69 142 134 145 149 149 152 152 142 144 115 61 . Slowest Speed 400 | 200 120 250 77 77 240 163 119 119 54 250 400 145 145 152 160 152 152 250 240 250 235 . Overloaded Moves . | . . . . . . . . . . . . . . . . . . . . . . . Propulsion Burnouts . | . . . . . . . . . . . . . . . . . . . . . . . Robots Hopped . | . . . . . . . . . . . . . . . . . . . . . . . Cave-ins Triggered . | . . . . . . . . . . . . . . . . . . . . . . . Exploration Rate (%) 45 | 4 25 45 94 36 55 5 60 48 70 56 15 97 . 43 8 47 82 99 25 23 56 1 Regions Visited 22 Branch Regions 13 Pre-discovered Areas 4 | . . . 1 . . . . . 1 . . . . . . . . . . . 2 . Known Exits Taken 16 | . . . 1 1 1 1 1 1 1 1 . . 1 . 1 1 1 1 1 1 1 . Unknown Exits Taken 3 | 1 1 1 . . . . . . . . . . . . . . . . . . . . Scrap Searched 7 | . . . . 1 . . 2 1 . 2 . . . . . . . . . . 1 . Spaces Dug 18 | . 18 . . . . . . . . . . . . . . . . . . . . . Terrain Destroyed 275 | . 18 . . . 99 . . . . 53 . . . . . 2 1 10 3 83 6 . Melee . | . . . . . . . . . . . . . . . . . . . . . . . Projectile 54 | . 18 . . . . . . . . . . . . . . 2 1 10 3 14 6 . AOE 221 | . . . . . 99 . . . . 53 . . . . . . . . . 69 . . Terrain Rammed . | . . . . . . . . . . . . . . . . . . . . . . . Walls Destroyed . | . . . . . . . . . . . . . . . . . . . . . . . Machines Disabled . | . . . . . . . . . . . . . . . . . . . . . . . Actions | -11 -10 -10 -10 -9 -8 -7 -7 -7 -7 -6 -6 -6 -6 -6 -5 -5 -5 -5 -5 -4 -4 -4 --------- Run | Yrd Mat Min Exi Min Mat Fac Low Low Dat Pro Fac Was Fac DSF Fac Ext Cet Arc Hub Fac Upp Upp Total 12300 | 94 206 273 748 160 2255 332 547 290 124 354 2057 378 2 202 497 604 315 620 394 1380 465 3 Wait 2523 | 14 8 1 . . 827 67 10 4 . 1 789 46 . 156 86 112 51 110 62 160 19 . Move 8871 | 62 168 255 735 145 1286 247 529 280 124 312 1086 304 2 46 380 457 235 443 284 1081 410 . Hop . | . . . . . . . . . . . . . . . . . . . . . . . Pick Up 102 | 8 4 3 2 3 25 3 3 1 . 1 22 3 . . 7 2 . 3 3 9 . . Fast Attach 105 | 7 . 3 3 4 5 1 . . . . 10 11 . . 7 1 5 2 12 27 7 . Attach 76 | . 1 2 . . 9 5 . 2 . 7 23 3 . . 1 . 1 2 1 11 7 1 Detach 43 | . . 2 . . 4 2 . 1 . 2 12 3 . . . . . 1 . 9 7 . Swap 83 | . 1 1 3 1 39 4 1 1 . 3 11 1 . . 2 1 . 3 2 8 1 . Drop 139 | . 3 4 5 7 21 2 4 . . . 28 7 . . 13 3 3 2 11 25 1 . Fire 350 | 3 21 1 . . 39 1 . 1 . 28 71 . . . . 28 20 54 19 49 13 2 Melee . | . . . . . . . . . . . . . . . . . . . . . . . Ram 1 | . . . . . . . . . . . . . . . . . . . . 1 . . Kick 2 | . . . . . . . . . . . 2 . . . . . . . . . . . Crush 4 | . . . . . . . . . . . 3 . . . 1 . . . . . . . Escape Stasis . | . . . . . . . . . . . . . . . . . . . . . . . Rewire 1 | . . 1 . . . . . . . . . . . . . . . . . . . . Trap . | . . . . . . . . . . . . . . . . . . . . . . . Miscellaneous . | . . . . . . . . . . . . . . . . . . . . . . . Route ------- -11/Scrapyard -10/Materials -10/Mines -10/Exiles (discovered 2 exits: *Min x2) -9/Mines -8/Materials (discovered 2 exits: *Fac x2) -7/Factory -7/Lower Caves -7/Lower Caves -7/Data Miner -6/Proximity Caves -6/Factory -6/Waste -6/Factory -6/DSF -5/Factory -5/Extension (discovered 2 exits: *Fac / *Cet) -5/Cetus -5/Archives (discovered 3 exits: *Fac / *Hub x2) -5/Hub_04(d) -4/Factory -4/Upper Caves -4/Upper Caves History --------- Turn | Location | Event 10 | -11/Scrapyard | Discovered new exit (range 15) 120 | -11/Scrapyard | Entered Materials 332 | -10/Materials | Build established: Mutant 358 | -10/Materials | Discovered new exit (range 16) 416 | -10/Materials | Entered Mines 500 | -10/Mines | Assisted by bots powering up and referring to "LRC-V3" 510 | -10/Mines | Assembled infested the area 554 | -10/Mines | Met 8R-AWN 568 | -10/Mines | Lost 3 allies 592 | -10/Mines | Lost 3 parts (2u1w) 661 | -10/Mines | Discovered new exit (range 5) 695 | -10/Mines | Entered Exiles 716 | -10/Exiles | Welcomed by 8R-AWN 730 | -10/Exiles | Met EX-HEX 778 | -10/Exiles | Met EX-DEC 796 | -10/Exiles | Learned location of Zion (-6) 836 | -10/Exiles | Discovered new exit (range 12) 902 | -10/Exiles | Visited The Gauntlet 1007 | -10/Exiles | Met EX-BIN 1027 | -10/Exiles | Aligned with FarCom system 1027 | -10/Exiles | Given EX-Vault access code 1085 | -10/Exiles | Opened EX-Vault 1088 | -10/Exiles | Found Prototype Device 1088 | -10/Exiles | Identified Supersonic Drone Bay 1093 | -10/Exiles | Found Prototype Special Weapon 1093 | -10/Exiles | Identified Field Lobotomy Kit 1115 | -10/Exiles | Warned to stay clear of 0b10 Research branches 1149 | -10/Exiles | Learned about 8R-AWN's background 1169 | -10/Exiles | Discovered new exit (range 14) 1178 | -10/Exiles | Identified exit to Mines 1275 | -10/Exiles | Left Exiles lab with Field Lobotomy Kit 1275 | -10/Exiles | Entered Mines 1279 | -9/Mines | Met a Derelict who couldn't figure out how to use a Trap Extractor 1378 | -9/Mines | Discovered new exit (range 8) 1383 | -9/Mines | Identified exit to Materials 1401 | -9/Mines | Entered Materials 1401 | -8/Materials | Evolved 4 slots: Propulsion x2, Utility x2 1664 | -8/Materials | Garrison activated, responded to threat 2379 | -8/Materials | Build established: Scavenger-Mutant 2855 | -8/Materials | Discovered new exit (range 15) 2921 | -8/Materials | Build established: Mutant 3256 | -8/Materials | Discovered new exit (range 16) 3288 | -8/Materials | Identified exit to Factory 3291 | -8/Materials | Entered Factory 3291 | -7/Factory | Evolved 2 slots: Utility x2 3477 | -7/Factory | Discovered new exit (range 12) 3493 | -7/Factory | Identified exit to Lower Caves 3541 | -7/Factory | Entered Lower Caves 3666 | -7/Lower Caves | Learned Factory emergency access door positions 3679 | -7/Lower Caves | Learned Factory garrison access intel 3729 | -7/Lower Caves | Encountered a Warlord checkpoint 3767 | -7/Lower Caves | Build established: Scavenger-Mutant 3833 | -7/Lower Caves | Discovered new exit (range 9) 3842 | -7/Lower Caves | Identified exit to Lower Caves 3866 | -7/Lower Caves | Entered another Lower Caves area 3875 | -7/Lower Caves | Assimilated TR-LA9(f) with FLK Orb 3995 | -7/Lower Caves | Spotted B-75 Beast 4029 | -7/Lower Caves | Discovered new exit (range 8) 4032 | -7/Lower Caves | Identified exit to Data Miner 4034 | -7/Lower Caves | Entered Data Miner 4034 | -7/Data Miner | Discovered new exit (range 6) 4037 | -7/Data Miner | Identified exit to Proximity Caves 4045 | -7/Data Miner | Met Data Miner 4057 | -7/Data Miner | Learned location of Section 7 (-2) 4057 | -7/Data Miner | Acquired the access code to Warlord's prototype stash 4066 | -7/Data Miner | Received God Mode back door access code from Data Miner 4101 | -7/Data Miner | Entered Proximity Caves 4158 | -6/Proximity Caves | Attracted the attention of an 0b10 base 4279 | -6/Proximity Caves | Lost 5 parts (3p1n1w) 4292 | -6/Proximity Caves | Attracted the attention of an 0b10 checkpoint 4386 | -6/Proximity Caves | Discovered new exit (range 6) 4389 | -6/Proximity Caves | Identified exit to Factory 4390 | -6/Proximity Caves | Entered Factory 4390 | -6/Factory | Evolved 2 slots: Propulsion x1, Utility x1 4392 | -6/Factory | Loaded intel: 4 garrison access locations 4767 | -6/Factory | Assimilated P-60 Hacker with FLK Orb 5022 | -6/Factory | Assimilated P-60 Hacker with FLK Orb 5795 | -6/Factory | Assimilated P-60 Hacker with FLK Orb 6618 | -6/Factory | Assimilated G-50 Soldier with FLK Orb 6748 | -6/Factory | Lost 4 parts (1p1n2w) 6906 | -6/Factory | Garrison activated, responded to threat 6986 | -6/Factory | Build established: Hacker-Mutant 7008 | -6/Factory | Sucked down chute 7008 | -6/Factory | Entered Waste 7009 | -6/Waste | Joined by Warlord forces that had cleared the area 7026 | -6/Waste | Lost 9 parts (2p4n3u) 7118 | -6/Waste | Found Damper Plating 7385 | -6/Waste | Discovered new exit (range 16) 7477 | -6/Waste | Build established: Scavenger-Mutant 7492 | -6/Waste | Entered Factory 7492 | -6/Factory | Accompanied by 20 allies 7495 | -6/Factory | Identified exit to DSF 7495 | -6/Factory | Entered DSF 7495 | -6/DSF | Accompanied by 20 allies 7536 | -6/DSF | Additional patrols routed to DSF 7683 | -6/DSF | Discovered new exit (range 15) 7719 | -6/DSF | Sterilization system engaged 7720 | -6/DSF | Entered Factory 7720 | -5/Factory | Accompanied by 16 allies 7720 | -5/Factory | Evolved 2 slots: Propulsion x1, Weapon x1 7880 | -5/Factory | Lost 3 allies 8012 | -5/Factory | Build established: Scavenger-Tank 8020 | -5/Factory | First assault squad dispatched 8141 | -5/Factory | Lost 4 allies 8255 | -5/Factory | Discovered new exit (range 6) 8261 | -5/Factory | Identified exit to Extension 8405 | -5/Factory | Entered Extension 8405 | -5/Extension | Accompanied by 7 allies 8702 | -5/Extension | Lost 3 allies 8735 | -5/Extension | Spotted B-75 Beast 8772 | -5/Extension | Destroyed B-75 Beast 9259 | -5/Extension | Discovered new exit (range 16) 9259 | -5/Extension | Discovered new exit (range 16) 9295 | -5/Extension | Identified exit to Cetus 9301 | -5/Extension | Identified exit to Factory 9307 | -5/Extension | Entered Cetus 9307 | -5/Cetus | Accompanied by 1 ally 9328 | -5/Cetus | Spotted Cetus Guard 9328 | -5/Cetus | Spotted Cetus Guard 9329 | -5/Cetus | Spotted Cetus Guard 9340 | -5/Cetus | Spotted Cetus Guard 9340 | -5/Cetus | Destroyed Cetus Guard 9351 | -5/Cetus | Destroyed Cetus Guard 9353 | -5/Cetus | Destroyed Cetus Guard 9363 | -5/Cetus | Destroyed Cetus Guard 9706 | -5/Cetus | Discovered new exit (range 15) 9727 | -5/Cetus | Identified exit to Archives 9758 | -5/Cetus | Spotted Cetus Guard 9759 | -5/Cetus | Spotted Cetus Guard 9791 | -5/Cetus | Entered Archives 9992 | -5/Archives | Lost 3 parts (2n1w) 10165 | -5/Archives | Unable to access archive contents 10180 | -5/Archives | Unable to access archive contents 10194 | -5/Archives | Unable to access archive contents 10194 | -5/Archives | Unable to access archive contents 10200 | -5/Archives | Discovered new exit (range 13) 10215 | -5/Archives | Identified exit to Hub_04(d) 10311 | -5/Archives | Build established: Scavenger-Skirmisher 10315 | -5/Archives | Discovered exit to Factory (range 14) 10445 | -5/Archives | Discovered exit to Hub_04(d) (range 14) 10712 | -5/Archives | Entered Hub_04(d) 10814 | -5/Hub_04(d) | Discovered exit to Factory (range 14) 11273 | -5/Hub_04(d) | Entered Factory 11273 | -4/Factory | Evolved 2 slots: Power x1, Utility x1 11475 | -4/Factory | Garrison activated, responded to threat 11949 | -4/Factory | Build established: Scavenger-Mutant 12599 | -4/Factory | Build established: Scavenger-Skirmisher 12667 | -4/Factory | Lost 5 parts (1p2n1u1w) 12744 | -4/Factory | Lost 4 parts (2n1u1w) 12809 | -4/Factory | Lost 4 parts (2n1u1w) 12824 | -4/Factory | Core integrity fell below 50% 12878 | -4/Factory | Lost 4 parts (1p3u) 12919 | -4/Factory | Discovered new exit (range 13) 12924 | -4/Factory | Identified exit to Upper Caves 12925 | -4/Factory | Entered Upper Caves 12955 | -4/Upper Caves | Core integrity fell below 20% 12962 | -4/Upper Caves | Met a Warlord Commander 12963 | -4/Upper Caves | Learned location of Warlord (-4) 12964 | -4/Upper Caves | Warlord Commander delivered Encrypted Comm Array 12972 | -4/Upper Caves | Found Encrypted Comm Array 13133 | -4/Upper Caves | Attracted the attention of an 0b10 checkpoint 13179 | -4/Upper Caves | Learned location of Armory (-4) 13228 | -4/Upper Caves | Build established: Mutant 13242 | -4/Upper Caves | Discovered new exit (range 9) 13251 | -4/Upper Caves | Identified exit to Upper Caves 13257 | -4/Upper Caves | Entered another Upper Caves area 13264 | -4/Upper Caves | Destroyed by H-77 Assassin with High-powered Shotgun Last Messages --------------- 13216_ Dispersion Rifle destroyed. 13216_ Penetrated by Slug. 13242_ EXIT=FOUND 13251_ EXIT=IDENTIFIED: UPPER CAVES 13256_ Penetrated by Slug. 13256_ WAR.Sys disabled. LOCATION=UPPER CAVES GOAL=ESCAPE 13258_ Penetrated by Slug. 13258_ Slug penetrates Wall. 13258_ H-77 Assassin knocked back. 13259_ Penetrated by Slug. 13261_ Mak. Sword destroyed. 13261_ Slug penetrates Wall. 13261_ H-77 Assassin knocked back. 13262_ Penetrated by Slug. 13262_ Slug penetrates Wall. 13264_ Penetrated by Slug. 13264_ Hacking Suite destroyed. 13264_ Slug penetrates Wall. Map ----- +----------------------------------------------------+ | | | | | | | | | ?????????????????????????????????????????????????? | | ?????????????????????????????????????????????????? | | ?????????????????????????????????????????????????? | | ?????????????????????????????????????????????????? | | ?????????????????????????????????????????????????? | | ?????????????????????????????????????????????????? | | ?????????????????????????????????????????????????? | | ?????????????????????????????????????????????????? | | ?????????????????????????????????????????????????? | | ?????????????????????????????????????????????????? | | ?????????????????????????????????????????????????? | | ?????????????????????????????????????????????????? | | ?????????????????????????????????????????????????? | | ?????????????????????????????????????????????????? | | ????????????????????###??????????????????????????? | | ????????????????????? #?????????????????????????? | | ????????????????????? ?????????????????????????? | | ?????????????????????? #####????????????????????? | | ??????????????????????? ##???????????????????? | | ???????????????????????# #???????????????????? | | ??????????????????????## #????????????????????? | | ??????????????????????# @ #?????????????????????? | | ??????????????????????# h#?????????????????????? | | ??????????????????????#% #????????????????????? | | ??????????????????????#% h ???????????????????? | | ??????????????????????## ??????????????????? | | ???????????????????????# ######?????????????????? | | ???????????????????????# #??????????????????????? | | ???????????????????????# #??????????????????????? | | ???????????????????????# #??????????????????????? | | ??????????????????????? ???????????????????????? | | ??????????????????????? ???????????????????????? | | ???????????????????????###???????????????????????? | | ?????????????????????????????????????????????????? | | ?????????????????????????????????????????????????? | | ?????????????????????????????????????????????????? | | ?????????????????????????????????????????????????? | | ?????????????????????????????????????????????????? | | ?????????????????????????????????????????????????? | | ?????????????????????????????????????????????????? | | ?????????????????????????????????????????????????? | | ?????????????????????????????????????????????????? | | ?????????????????????????????????????????????????? | | ?????????????????????????????????????????????????? | | ?????????????????????????????????????????????????? | | ?????????????????????????????????????????????????? | +----------------------------------------------------+ Best States ------------- Heat Dissipation 76 Coolant Potential 100 Energy Generation 31 Energy Capacity 725 Matter Stores 440 Matter Capacity 450 Sight Range 16 Terrain Scan Range 16 Terrain Scan Density 10 ECM Strength 2 Jamming Range 14 Base Temperature (-) 200 EM Shielding 2 Armor Coverage 900 Resistance: KI 25 Resistance: TH 10 Propulsion Shielding 66 Utility Shielding 66 Evasion (%) 63 Targeting Accuracy 8 Recoil Reduction 4 Energy Filtering 50 Offensive Hacking 22 Defensive Hacking 12 Item Schematics ----------------- Hvy. Rocket Launcher | -8/Materials | Scanalyzed Adv. Beam Cannon | -8/Materials | Scanalyzed Combat Drone Bay | -7/Data Miner | Free Lgt. Regenerative Plating | -7/Data Miner | Free Biomechanical Wings | -7/Data Miner | Free Exp. Utility Shielding | -7/Data Miner | Free Scatter Rocket Array | -7/Data Miner | Free Gyrokinetic Inverter | -7/Data Miner | Free Imp. Focal Shield | -7/Data Miner | Free Hvy. Phase Cannon | -7/Data Miner | Free Imp. Weapon Cycler | -7/Data Miner | Free Hyp. Coil Gun | -7/Data Miner | Free Imp. Antigrav System | -7/Data Miner | Free Imp. Remote Shield | -7/Data Miner | Free Robot Schematics ------------------ R-10 Processor | -7/Data Miner | Free B-48 Gladiator | -7/Data Miner | Free H-55 Commando | -7/Data Miner | Free X-62 Marksman | -7/Data Miner | Free Fabricated ------------ Nothing Alien Tech Used ----------------- None Achievements -------------- Explorer I Survived The Infestation Knowing Is Half The Battle Challenges ------------ None Game ------ Seed CoolantPointyShifter Manual? 0 Play Time 03:54:47 Cumulative 48.9 hours Start 2024.04.27 @ 19:09:19 End 2024.04.28 @ 19:21:33 Sessions 11 Manual Loads 0 Difficulty Rogue Special Mode None Game No. 22 Rogue 22 Adventurer 0 Explorer 0 Win Type - Total 0 Types 0/0/0/0/0/0/0/0/0 Lore% 31 Gallery% 45 Achievement% 27 Wizard Run 0 Options --------- Layout 1 ASCII 1 Keyboard 1 Movement Vi Keybinds 0 Fullscreen 1 Font 24/Smallcaps Map View 50x35 Zoom Use 4% Tactical HUD 1 Map Filters NONE Filters NONE Steam 1 RUN: 96e1246a-7b9e-4c43-9b6d-56ec23d7a6dd